Cogmind - Beta 16 @@@ ROGUE MODE // 2025.12.08 @ 19:16:49 Player: JuustuToug Result: Destroyed by Y-45 Defender with Heavy Assault Rifle Performance ------------- Evolutions (0) 0 Regions Visited (2) 400 Robots Destroyed (32) 160 Value Destroyed (678) 678 Prototype IDs (0) 0 Alien Tech Used (0) 0 Bonus (0) 0 TOTAL SCORE: 1238 Bonus ------- None Cogmind --------- Core Integrity 0/250 Matter 272/300 Energy 105/125 System Corruption 0% Temperature Cool (9) Movement Treading (320) Ox2 Location -10/Mines Parts ------- > --- POWER (1) -------- Light Ion Engine > --- PROPULSION (2) --- Light Treads > --- UTILITY (2) ------ Improved Heat Sink High-capacity Storage Unit > --- WEAPON (2) ------- Light Assault Rifle Light Assault Rifle > --- INVENTORY (20) --- Heat Sink Heat Sink High-capacity Storage Unit Structural Scanner Transport Network Coupler Tractor Beam Small Laser Small Laser Light Assault Rifle Light Assault Rifle Grenade Launcher Peak State ------------ > --- POWER ------------ Ion Engine > --- PROPULSION ------- Light Treads Aluminum Leg > --- UTILITY ---------- Improved Heat Sink High-capacity Storage Unit > --- WEAPON ----------- Light Assault Rifle Light Assault Rifle > --- INVENTORY -------- Light Ion Engine Heat Sink Heat Sink High-capacity Storage Unit Structural Scanner Transport Network Coupler Tractor Beam Small Laser Light Assault Rifle Light Assault Rifle Grenade Launcher [Rating: 10] Favorites ----------- Power Ion Engine Engine Ion Engine Propulsion Light Treads Treads Light Treads Leg Aluminum Leg Utility High-capacity Storage Unit Device Heat Sink Storage High-capacity Storage Unit Weapon Light Assault Rifle Energy Gun Medium Laser Ballistic Gun Light Assault Rifle Build | -11 -10 -10 ------- Run | Yrd Mat Min Slots Evolved . | . . . Power . | . . . Propulsion . | . . . Utility . | . . . Weapon . | . . . Parts Attached 21 | 8 13 . Power 4 | 1 3 . Engine 4 | 1 3 . Core . | . . . Reactor . | . . . Propulsion 5 | 2 3 . Treads 4 | 2 2 . Leg 1 | . 1 . Wheel . | . . . Hover . | . . . Flight . | . . . Utility 7 | 2 5 . Device 3 | 1 2 . Storage 4 | 1 3 . Processor . | . . . Hackware . | . . . Protection . | . . . Artifact . | . . . Weapon 5 | 3 2 . Energy Gun 2 | 2 . . Energy Cannon . | . . . Ballistic Gun 3 | 1 2 . Ballistic Cannon . | . . . Launcher . | . . . Special Weapon . | . . . Impact Weapon . | . . . Slashing Weapon . | . . . Piercing Weapon . | . . . Special Melee Weapon . | . . . Unidentified Prototypes . | . . . Parts Lost 8 | . 6 2 Power 2 | . 1 1 Propulsion 3 | . 2 1 Utility 1 | . 1 . Weapon 2 | . 2 . Highest Loss Streak 2 | . 2 2 To Critical Strikes . | . . . Average Backups 7 | 1 6 12 Power . | . . 1 Propulsion . | . . . Utility 3 | . 3 6 Weapon 2 | . 2 5 Tool/Special . | . . . Unused Backups 12 | 1 1 10 Power . | . . . Propulsion 1 | 1 . . Utility 6 | . 1 5 Weapon 5 | . . 5 Tool/Special . | . . . Average Slot Usage (%) 99 | . 99 98 Engine 13 | . 13 14 Treads 26 | . 25 26 Leg 1 | . 1 . Device 13 | . 13 14 Storage 14 | . 14 14 Energy Gun 11 | . 13 . Ballistic Gun 16 | . 14 28 Peak Build Rating 10 | 7 10 10 Average Rating 7 | 5 7 9 On Entrance 5 | . 7 10 Avg Prop Armor Cover (%) 8 | . 8 . Naked Turns . | . . . Heaviest Build 50 | 15 50 48 Greatest Support 40 | 40 40 40 Greatest Overweight (x) 2 | . 2 1 Average Overweight (x) . | . . 1 Largest Inventory Capacity 20 | 8 20 20 Average Capacity 18 | 7 19 20 Most Carried 13 | 3 13 12 Average Carried 7 | 1 7 11 Final Capacity 20 | 8 20 20 Final Carried 12 | 2 12 11 Class Distribution -------------------- 71% | Mutant 28% | Scavenger-Mutant Dominant Class ---------------- Mutant | -10/Materials Scavenger-Mutant | -10/Mines Resources | -11 -10 -10 ----------- Run | Yrd Mat Min Matter Collected 555 | 289 266 . Remotely . | . . . Salvage Created 1152 | 51 964 137 Parts 60 | 4 49 7 Haulers Intercepted 2 | . 2 . Recyclers Shooed 3 | . 2 1 Parts Field Recycled . | . . . Retrieved Matter . | . . . Parts Self-Destructed . | . . . Prevented . | . . . Parts Restored . | . . . Kills | -11 -10 -10 ------- Run | Yrd Mat Min Combat Hostiles Destroyed 17 | . 16 1 Guns 17 | . 16 1 Classes Destroyed 10 | 1 8 1 Worker 2 | . 2 . Builder 2 | . 2 . Tunneler 2 | 2 . . Hauler 2 | . 2 . Recycler 3 | . 2 1 Operator 2 | . 2 . Watcher 2 | . 2 . Swarmer 3 | . 3 . Grunt 13 | . 13 . Sentry 1 | . . 1 Best Kill Streak 4 | 2 4 2 Combat Bots Only 3 | . 3 1 Max Kills in Single Turn 2 | 1 2 1 Gunslinging 1 | . 1 . Exploded . | . . . Melee . | . . . Uniques/NPCs Destroyed . | . . . Combat | -11 -10 -10 -------- Run | Yrd Mat Min Hostile Shots Fired 135 | . 103 32 Missed 34 | . 29 5 Hits 101 | . 74 27 Projectile 101 | . 74 27 Critical Strikes 2 | . . 2 Damage Taken 1341 | . 954 387 Core 254 | . 195 59 Absorbed by Shields . | . . . Core Remaining (%) 100 | 100 . . Volleys Fired 98 | 3 81 14 Largest 2 | 2 2 2 Hottest 90 | 70 90 40 Shots Fired 195 | 6 161 28 Gun 195 | 6 161 28 Cannon . | . . . Launcher . | . . . Special . | . . . Kinetic 117 | 3 86 28 Thermal 65 | 3 62 . Explosive . | . . . Electromagnetic 13 | . 13 . Robot Hit Streak 17 | 5 17 10 Robot Miss Streak 5 | . 5 1 Penetration Max . | . . . Secondary Targets 4 | . 3 1 Max Gunslinging Chain 1 | . 1 1 Shots Hit Robots 145 | 5 116 24 Core Hits 64 | 2 55 7 Critical Kills 1 | . 1 . Critical Parts Destroyed . | . . . Critical Strikes 5 | . 5 . Burn 4 | . 4 . Destroy 1 | . 1 . Melee Attacks . | . . . Impact . | . . . Slashing . | . . . Piercing . | . . . Sneak Attacks . | . . . Combat Hostiles . | . . . Follow-up Attacks . | . . . Damage Inflicted 1657 | 61 1406 190 Guns 1562 | 61 1311 190 Cannons . | . . . Explosions 69 | . 69 . Melee . | . . . Ramming 26 | . 26 . Kinetic 825 | 24 611 190 Thermal 670 | 37 633 . Explosive . | . . . Electromagnetic 136 | . 136 . Impact . | . . . Slashing . | . . . Piercing . | . . . Highest Corruption . | . . . Average Corruption . | . . . Corruption Purged . | . . . Corruption Blocked . | . . . Overload Shots . | . . . Overflow Damage . | . . . Projectiles . | . . . Explosions . | . . . Melee . | . . . Knockbacks 1 | . 1 . Impact 1 | . 1 . Kinetic . | . . . Secondary . | . . . Self-Inflicted Damage 44 | . 44 . Shots 2 | . 2 . Rammed 7 | . 7 . Targets Rammed 8 | . 8 . Kicked . | . . . Crushed 1 | . 1 . Highest Temperature 108 | 27 108 8 Average Temperature 19 | 14 19 8 Received Heat Transfer 585 | . 441 144 Siege Activations . | . . . Martial Activations . | . . . Shielding Activations . | . . . Robots Disrupted . | . . . Combat Hostiles . | . . . Robots Corrupted . | . . . Combat Hostiles . | . . . Parts Fried . | . . . Impact Corruptions . | . . . Robots Melted . | . . . Combat Hostiles . | . . . Parts Melted 3 | 1 2 . Heat Transferred 2122 | 111 2011 . Parts Sabotaged . | . . . Parts Stolen . | . . . Parts Stripped . | . . . Power Chain Reactions 2 | . 2 . Alert | -11 -10 -10 ------- Run | Yrd Mat Min Maximum Alert Level . | . . . Low Security (%) 100 | 100 100 100 Level 1 . | . . . Level 2 . | . . . Level 3 . | . . . Level 4 . | . . . Level 5 . | . . . High Security . | . . . Max Security . | . . . Peak Influence 114 | 10 114 25 Initial . | . . . Average 32 | . 42 1 Influence Increases 572 | 10 537 25 Destroy 0b10 Robot/C 340 | . 320 20 Destroy 0b10 Robot/NC 75 | 10 60 5 Destroy Leader 88 | . 88 . Successful Hack 28 | . 28 . Disable Machine 15 | . 15 . Destroy Structure 11 | . 11 . Lose Combat Pursuer 15 | . 15 . Influence Decreases 567 | 10 536 21 Entered New Map 1 | . . 1 Time Decay 506 | 10 486 10 Lost Part 60 | . 50 10 Squads Dispatched 4 | . 4 . Investigation 1 | . 1 . Extermination . | . . . Reinforcement 3 | . 3 . Assault . | . . . Garrison . | . . . Intercept . | . . . Searches Triggered . | . . . Construction Impeded . | . . . Haulers Reinforced . | . . . Active Scanning Responses . | . . . Cargo Convoy Interrupts . | . . . Stealth | -11 -10 -10 --------- Run | Yrd Mat Min Distress Signals 3 | . 3 . Communications Jammed . | . . . Distress Signals . | . . . Times Spotted 35 | . 33 2 Peak Tracking Total 5 | . 5 2 Tactical Retreats 1 | . 1 . Traps | -11 -10 -10 ------- Run | Yrd Mat Min Traps Triggered 1 | . 1 . Indirectly . | . . . Trap Hack Attempts . | . . . Triggered . | . . . Disarmed . | . . . Reprogrammed . | . . . Reused . | . . . Traps Extracted . | . . . Installed . | . . . Triggered . | . . . Machines | -11 -10 -10 ---------- Run | Yrd Mat Min Machines Disabled 1 | . 1 . Max in Single Turn 1 | . 1 . Machines Repaired . | . . . Machines Dismantled . | . . . Machines Sabotaged . | . . . Overloaded Fab Kills . | . . . Hacking | -11 -10 -10 --------- Run | Yrd Mat Min Machines Accessed 7 | . 7 . Terminals 5 | . 5 . Fabricators . | . . . Repair Stations . | . . . Recycling Units 2 | . 2 . Scanalyzers . | . . . Garrison Access . | . . . Total Hacks 19 | . 19 . Successful 8 | . 8 . Failed 11 | . 11 . Catastrophic 1 | . 1 . Database Lockouts . | . . . Manual 15 | . 15 . Terminals 13 | . 13 . Fabricators . | . . . Repair Stations . | . . . Recycling Units 6 | . 6 . Scanalyzers . | . . . Garrison Access . | . . . Terminal Hacks . | . . . Fabricator Hacks . | . . . Repair Station Hacks . | . . . Recycling Unit Hacks 1 | . 1 . Retrieve Components 1 | . 1 . Scanalyzer . | . . . Garrison Access Hacks . | . . . Unauthorized Hacks 7 | . 7 . Terminals 6 | . 6 . Botnet 2 | . 2 . Skim 4 | . 4 . Fabricators . | . . . Repair Stations . | . . . Recycling Units 1 | . 1 . Reject 1 | . 1 . Scanalyzers . | . . . Garrison Access . | . . . Data Cores Recovered . | . . . Used . | . . . Hacking Detections 7 | . 7 . Full Trace Events 1 | . 1 . Feedback Events . | . . . Feedback Blocked . | . . . Robot Schematics Acquired . | . . . Robots Built . | . . . Authchips . | . . . Time . | . . . Total Robot Build Rating . | . . . Part Schematics Acquired . | . . . Parts Built . | . . . Authchips . | . . . Time . | . . . Total Part Build Rating . | . . . Part Studies Acquired . | . . . Parts Repaired . | . . . Time . | . . . Parts Recycled . | . . . Recycled Matter . | . . . Retrieved Matter . | . . . Retrieved Components 1 | . 1 . Parts Scanalyzed . | . . . Part Schematics Acquired . | . . . Parts Damaged . | . . . Bothacking | -11 -10 -10 ------------ Run | Yrd Mat Min Used RIF Installer . | . . . Robots Hacked . | . . . Non-combat . | . . . Combat . | . . . Robot Hacks Applied . | . . . Relay Couplers Released . | . . . Fabnet Peak Effective % . | . . . Robots Rewired . | . . . Allies Hacked . | . . . Hacks Repelled . | . . . Allies | -11 -10 -10 -------- Run | Yrd Mat Min Total Allies . | . . . Largest Group . | . . . Highest-Rated Group . | . . . Highest-Rated Ally . | . . . Total Orders . | . . . Ally Attacks . | . . . Total Damage . | . . . Kills . | . . . Allies Corrupted . | . . . Allies Melted . | . . . Intel | -11 -10 -10 ------- Run | Yrd Mat Min Active Infowar (turns) 353 | 46 307 . Seismic 353 | 46 307 . Robot Analysis Total . | . . . Derelict Logs Recovered 2 | . . 2 Drone Launches . | . . . Drone Recoveries . | . . . Exploration | -11 -10 -10 ------------- Run | Yrd Mat Min Turns Passed 2379 | 150 1838 391 Spaces Moved 855 | 81 627 147 Core 4 | 4 . . Treads 851 | 77 627 147 Legs . | . . . Wheels . | . . . Hover . | . . . Flight . | . . . Fastest Speed 50 | 50 160 240 Average Speed 229 | 154 236 240 Slowest Speed 320 | 160 320 240 Overloaded Moves . | . . . Propulsion Burnouts . | . . . Robots Hopped . | . . . Potential Cave-ins . | . . . Cave-ins Triggered . | . . . Exploration Rate (%) 52 | 5 98 54 Regions Visited 2 Branch Regions 1 Pre-discovered Areas 1 | . . 1 Known Exits Taken . | . . . Unknown Exits Taken 2 | 1 1 . Scrap Searched . | . . . Spaces Dug . | . . . Terrain Destroyed 9 | . 9 . Melee . | . . . Projectile . | . . . AOE 9 | . 9 . Terrain Rammed . | . . . Walls Destroyed . | . . . Machines Disabled . | . . . Actions | -11 -10 -10 --------- Run | Yrd Mat Min Total 1076 | 97 816 163 Wait 63 | 1 61 1 Move 853 | 80 626 147 Hop . | . . . Pick Up 20 | 3 17 . Fast Attach 9 | 8 1 . Attach 6 | . 5 1 Detach . | . . . Swap 10 | . 10 . Drop 9 | 2 7 . Fire 98 | 3 81 14 Melee . | . . . Ram . | . . . Kick . | . . . Crush 8 | . 8 . Escape Stasis . | . . . Rewire . | . . . Trap . | . . . Miscellaneous . | . . . Route ------- -11/Scrapyard -10/Materials (discovered 5 exits: [*Mat x3] / [*Min x2]) -10/Mines (discovered 1 exit: [*Mat]) History --------- Turn | Location | Event 7 | -11/Scrapyard | Discovered new exit (range 15) 151 | -11/Scrapyard | Entered Materials 309 | -10/Materials | Build established: Mutant 430 | -10/Materials | Discovered new exit (range 13) 591 | -10/Materials | Discovered new exit (range 6) 1032 | -10/Materials | Discovered new exit (range 12) 1130 | -10/Materials | Core integrity fell below 50% 1332 | -10/Materials | Discovered new exit (range 12) 1541 | -10/Materials | Discovered new exit (range 12) 1980 | -10/Materials | Build established: Scavenger-Mutant 1989 | -10/Materials | Entered Mines 2059 | -10/Mines | Learned location of Storage (-7) 2251 | -10/Mines | Learned 2 Materials zone layouts 2285 | -10/Mines | Discovered new exit (range 9) 2352 | -10/Mines | Core integrity fell below 20% 2380 | -10/Mines | Destroyed by Y-45 Defender with Heavy Assault Rifle Last Messages --------------- 01997_ K-01 Serf collects debris. 01997_ T-07 Excavator is excavating. 01999_ K-01 Serf collects debris. 02004_ K-01 Serf cleans the Plasma Injector. 02006_ K-01 Serf collects debris. 02059_ Acquired derelict log, extracted data. World map updated: -7/Storage. 02061_ K-01 Serf collects debris. 02251_ Acquired derelict log, extracted data. Data stored: Materials zone layouts (x2). 02285_ EXIT=FOUND 02345_ Critical hit (Burn: +37). 02353_ Lgt. Treads destroyed. 02354_ Y-45 Defender destroyed. 02356_ R-06 Scavenger collects Beam Rifle. 02364_ R-06 Scavenger destroyed. 02364_ Switching to secondary target: Y-45 Defender. 02374_ Critical hit (Burn: +37). 02374_ Ion Engine destroyed. Map ----- +----------------------------------------------------+ | | | | | | | | | | | ???????????????????????????????????? | | ???????????????????????????????????? | | ???????????????????????????????????? | | ???????????????????????????????????? | | ???????????????????????????????????? | | ???????????????????????????????????? | | ???????????????????????????????????? | | ???????????????????????????????????? | | ???????????????????????????????????? | | ???????????????????????????????????? | | ???????????????????????????????????? | | #############??????????????????????? | | ####???????????????????? | | #???????????????????? | | ########## #?????######????????? | | #????????##### #????##" "#????????? | | ?????????????# ##???#!! [!????????? | | ????????????## #???#!! !?????????? | | ???????????## #????# % ?????????? | | ???????????# #??####Y/###???????? | | ???????????# ##??# [@ ##??????? | | ??????????## #??## #??????? | | ?????????## #??# ##?????? | | ????????## ####= #?????? | | ????????# < [%!= #?????? | | ????????## ###### #?????? | | ?????????######????#### ##?????? | | ??????????????????????## #??????? | | ???????????????????????# ##??????? | | ??????????????????????? #???????? | | ??????????????????????? #???????? | | ??????????????????????? #???????? | | ???????????????????????## ##???????? | | ?????????????????????????##????????? | | ???????????????????????????????????? | | ???????????????????????????????????? | | ???????????????????????????????????? | | ???????????????????????????????????? | | ???????????????????????????????????? | | ???????????????????????????????????? | | ???????????????????????????????????? | | ???????????????????????????????????? | | ???????????????????????????????????? | | ???????????????????????????????????? | | ???????????????????????????????????? | +----------------------------------------------------+ Best States ------------- Heat Dissipation 39 Energy Generation 10 Energy Capacity 250 Matter Stores 300 Matter Capacity 300 Sight Range 16 Terrain Scan Density 10 Evasion (%) 40 Recoil Reduction 2 Item Schematics ----------------- None Robot Schematics ------------------ None Fabricated ------------ Nothing Repaired ---------- Nothing Studied --------- None Alien Tech Used ----------------- None Achievements -------------- None Challenges ------------ None Game ------ Seed BehemothResetDisintegrator Manual? 0 Play Time 00:10:56 Cumulative 229.3 hours Start 2025.12.08 @ 19:02:28 End 2025.12.08 @ 19:16:49 Sessions 1 Manual Loads 0 Difficulty Rogue Special Mode None Game No. 155 Rogue 155 Adventurer 0 Explorer 0 Win Type - Total 7 Types 5/0/1/1/0/0/0/0/0/0 Lore% 85 Gallery% 77 Achievement% 60 Wizard Run 0 Options --------- Layout 1 ASCII 0 Keyboard 0 Movement Mouse Keybinds 0 Fullscreen 2 Font 24/Smallcaps Map View 50x35 Zoom Use 0% Tactical HUD 1 Map Filters NONE Filters NONE Steam 1 RUN: 27439f43-d22c-41b7-b9fa-41d0469ed1f9